Cogmind - Beta 9.6 @@@ ROGUE MODE // 2020.05.19 @ 12:38:34 Player: pGoos Result: Destroyed by G-34 Mercenary with Small Laser Performance ------------- Evolutions (1) 500 Regions Visited (2) 400 Robots Destroyed (22) 110 Value Destroyed (554) 554 Prototype IDs (2) 40 Alien Tech Used (0) 0 Bonus (0) 0 TOTAL SCORE: 1604 Bonus ------- None Cogmind --------- Core Integrity 0/400 Matter 260/300 Energy 43/250 System Corruption 1% Temperature Cool (6) Movement Rolling (110) Ox2 Location -9/Materials Parts ------- > --- POWER (1) -------- Ion Engine > --- PROPULSION (3) --- Wheel Compact Wheel > --- UTILITY (2) ------ Large Storage Unit High-capacity Storage Unit > --- WEAPON (3) ------- Light EM Pulse Cannon Light EM Pulse Cannon > --- INVENTORY (18) --- Light Ion Engine Improved Heat Sink Large Storage Unit Plasma Cutter Peak State ------------ > --- POWER ------------ Light Nuclear Core > --- PROPULSION ------- Aluminum Leg Aluminum Leg Aluminum Leg > --- UTILITY ---------- High-capacity Storage Unit Small Matter Pod > --- WEAPON ----------- Small Laser Assault Rifle Welding Torch > --- INVENTORY -------- Ion Engine Light Ion Engine Light Ion Engine Wheel Wheel Heat Sink Improved Heat Sink Welding Torch [Rating: 12] Favorites ----------- Power Light Ion Engine Engine Light Ion Engine Power Core Light Nuclear Core Propulsion Aluminum Leg Leg Aluminum Leg Wheel Wheel Flight Unit Flight Unit Utility Small Matter Pod Device Heat Sink Storage Small Matter Pod Weapon Small Laser Energy Gun Small Laser Energy Cannon Light EM Pulse Cannon Ballistic Gun Light Assault Rifle Special Weapon Welding Torch Build | -11 -10 -9 ------- Run | Scr Mat Mat Slots Evolved 2 | . . 2 Power . | . . . Propulsion 1 | . . 1 Utility . | . . . Weapon 1 | . . 1 Parts Attached 49 | 6 19 24 Power 7 | 1 3 3 Engine 6 | 1 3 2 Core 1 | . . 1 Reactor . | . . . Propulsion 21 | 2 7 12 Treads . | . . . Leg 11 | 2 4 5 Wheel 7 | . . 7 Hover . | . . . Flight 3 | . 3 . Utility 7 | 1 4 2 Device 1 | . . 1 Storage 6 | 1 4 1 Processor . | . . . Hackware . | . . . Protection . | . . . Artifact . | . . . Weapon 14 | 2 5 7 Energy Gun 4 | 2 . 2 Energy Cannon 2 | . . 2 Ballistic Gun 6 | . 5 1 Ballistic Cannon . | . . . Launcher . | . . . Special Weapon 2 | . . 2 Impact Weapon . | . . . Slashing Weapon . | . . . Piercing Weapon . | . . . Special Melee Weapon . | . . . Unidentified Prototypes . | . . . Parts Lost 27 | . 11 16 Power 3 | . 2 1 Propulsion 11 | . 5 6 Utility 2 | . . 2 Weapon 11 | . 4 7 Highest Loss Streak 11 | . 6 11 Average Slot Usage (%) 76 | . 78 73 Engine 10 | . 10 8 Leg 13 | . 11 15 Wheel 3 | . . 9 Flight 3 | . 5 . Storage 24 | . 27 17 Energy Gun 3 | . 4 2 Ballistic Gun 15 | . 16 13 Naked Turns . | . . . Heaviest Build 61 | 6 40 61 Greatest Support 42 | 20 20 42 Greatest Overweight (x) 13 | . 13 4 Average Overweight (x) 1 | . 3 1 Largest Inventory Capacity 18 | 4 12 18 Average Capacity 7 | 4 11 12 Most Carried 12 | 3 12 9 Average Carried 4 | 2 5 6 Final Capacity 18 | 4 12 18 Final Carried 9 | 3 9 4 Class Distribution -------------------- 75% | Mutant 17% | Scavenger-Mutant 6% | Scavenger-Gunner Dominant Class ---------------- Scavenger-Mutant | -10/Materials Mutant | -9/Materials Resources | -11 -10 -9 ----------- Run | Scr Mat Mat Matter Collected 715 | 260 155 300 Remotely . | . . . Salvage Created 843 | 36 413 394 Parts 46 | 1 28 17 Haulers Intercepted . | . . . Recyclers Shooed . | . . . Parts Field Recycled . | . . . Retrieved Matter . | . . . Parts Self-Destructed . | . . . Prevented . | . . . Kills | -11 -10 -9 ------- Run | Scr Mat Mat Combat Hostiles Destroyed 19 | 1 13 5 Guns 18 | 1 13 4 Cannons 1 | . . 1 Classes Destroyed 5 | 1 2 2 Worker 1 | . 1 . Recycler 2 | . . 2 Swarmer 6 | . 6 . Grunt 12 | 1 7 4 Duelist 1 | . . 1 Best Kill Streak 4 | 1 3 4 Combat Bots Only 3 | 1 3 2 Max Kills in Single Turn 1 | 1 1 1 Gunslinging . | . . . Exploded . | . . . Melee . | . . . Uniques/NPCs Destroyed . | . . . Combat | -11 -10 -9 -------- Run | Scr Mat Mat Damage Taken 2536 | 53 1026 1457 Core 649 | 22 225 402 Absorbed by Shields . | . . . Core Remaining (%) 46 | 91 1 . Volleys Fired 82 | 4 51 27 Largest 3 | 2 2 3 Hottest 112 | 80 80 112 Shots Fired 140 | 8 77 55 Gun 134 | 8 77 49 Cannon 2 | . . 2 Launcher . | . . . Special 4 | . . 4 Kinetic 97 | . 60 37 Thermal 41 | 8 17 16 Explosive . | . . . Electromagnetic 2 | . . 2 Robot Hit Streak 11 | 4 6 11 Robot Miss Streak 5 | 1 5 5 Penetration Max . | . . . Secondary Targets 2 | . . 2 Max Gunslinging Chain 1 | . . 1 Shots Hit Robots 91 | 7 46 38 Core Hits 47 | 2 29 16 Critical Hits . | . . . Critical Kills . | . . . Critical Parts Destroyed . | . . . Melee Attacks . | . . . Impact . | . . . Slashing . | . . . Piercing . | . . . Sneak Attacks . | . . . Combat Hostiles . | . . . Follow-up Attacks . | . . . Damage Inflicted 928 | 77 419 432 Guns 845 | 77 419 349 Cannons 47 | . . 47 Explosions . | . . . Melee . | . . . Ramming 32 | . . 32 Kinetic 600 | . 318 282 Thermal 249 | 77 101 71 Explosive . | . . . Electromagnetic 47 | . . 47 Impact . | . . . Slashing . | . . . Piercing . | . . . Highest Corruption 1 | . . 1 Average Corruption 1 | . . 1 Corruption Purged . | . . . Overload Shots . | . . . Overflow Damage . | . . . Projectiles . | . . . Explosions . | . . . Melee . | . . . Knockbacks . | . . . Impact . | . . . Kinetic . | . . . Secondary . | . . . Self-Inflicted Damage 15 | . . 15 Shots . | . . . Rammed 6 | . . 6 Targets Rammed 7 | . . 7 Kicked 1 | . . 1 Crushed . | . . . Highest Temperature 257 | 90 257 97 Average Temperature 75 | 45 107 27 Received Heat Transfer 1212 | 30 486 696 Siege Activations . | . . . Robots Corrupted . | . . . Combat Hostiles . | . . . Parts Fried . | . . . Impact Corruptions . | . . . Robots Melted . | . . . Combat Hostiles . | . . . Parts Melted 1 | 1 . . Heat Transferred 575 | 175 225 175 Parts Sabotaged . | . . . Parts Stolen . | . . . Parts Stripped . | . . . Power Chain Reactions . | . . . Missiles Intercepted . | . . . Alert | -11 -10 -9 ------- Run | Scr Mat Mat Peak Influence 190 | 20 190 111 Average Influence 32 | 4 78 41 Maximum Alert Level . | . . . Low Security (%) 100 | 100 100 100 Level 1 . | . . . Level 2 . | . . . Level 3 . | . . . Level 4 . | . . . Level 5 . | . . . High Security . | . . . Max Security . | . . . Squads Dispatched 2 | . 1 1 Investigation 2 | . 1 1 Extermination . | . . . Reinforcement . | . . . Assault . | . . . Garrison . | . . . Intercept . | . . . Construction Impeded . | . . . Haulers Reinforced . | . . . Stealth | -11 -10 -9 --------- Run | Scr Mat Mat Distress Signals 2 | . 2 . Communications Jammed . | . . . Distress Signals . | . . . Times Spotted 38 | 1 19 18 Peak Tracking Total 9 | 1 6 9 Tactical Retreats 3 | . 1 2 Traps | -11 -10 -9 ------- Run | Scr Mat Mat Traps Triggered 2 | . 2 . Indirectly . | . . . Trap Hack Attempts . | . . . Triggered . | . . . Disarmed . | . . . Reprogrammed . | . . . Reused . | . . . Traps Extracted . | . . . Installed . | . . . Triggered . | . . . Machines | -11 -10 -9 ---------- Run | Scr Mat Mat Machines Disabled . | . . . Max in Single Turn . | . . . Machines Sabotaged . | . . . Garrisons Compromised . | . . . Overloaded Fab Kills . | . . . Fab Network Shutdowns . | . . . Hacking | -11 -10 -9 --------- Run | Scr Mat Mat Machines Accessed 2 | . . 2 Terminals 2 | . . 2 Fabricators . | . . . Repair Stations . | . . . Recycling Units . | . . . Scanalyzers . | . . . Garrison Access . | . . . Total Hacks 7 | . . 7 Successful 5 | . . 5 Failed 2 | . . 2 Catastrophic . | . . . Database Lockouts . | . . . Manual . | . . . Terminals 7 | . . 7 Fabricators . | . . . Repair Stations . | . . . Recycling Units . | . . . Scanalyzers . | . . . Garrison Access . | . . . Terminal Hacks 5 | . . 5 Record 2 | . . 2 Prototype ID Bank 1 | . . 1 Alert Level 1 | . . 1 Unreport Threat 1 | . . 1 Fabricator Hacks . | . . . Repair Station Hacks . | . . . Recycling Unit Hacks . | . . . Scanalyzer . | . . . Garrison Access Hacks . | . . . Unauthorized Hacks . | . . . Terminals . | . . . Fabricators . | . . . Repair Stations . | . . . Recycling Units . | . . . Scanalyzers . | . . . Garrison Access . | . . . Data Cores Recovered . | . . . Used . | . . . Hacking Detections 2 | . . 2 Full Trace Events 2 | . . 2 Feedback Events 1 | . . 1 Corruption 1 | . . 1 Feedback Blocked . | . . . Robot Schematics Acquired . | . . . Robots Built . | . . . Matter . | . . . Time . | . . . Total Robot Build Rating . | . . . Part Schematics Acquired . | . . . Parts Built . | . . . Matter . | . . . Time . | . . . Total Part Build Rating . | . . . Parts Repaired . | . . . Time . | . . . Parts Recycled . | . . . Recycled Matter . | . . . Retrieved Matter . | . . . Retrieved Components . | . . . Parts Scanalyzed . | . . . Part Schematics Acquired . | . . . Parts Damaged . | . . . Bothacking | -11 -10 -9 ------------ Run | Scr Mat Mat Used RIF Installer . | . . . Robots Hacked . | . . . Non-combat . | . . . Combat . | . . . Robot Hacks Applied . | . . . Relay Couplers Released . | . . . Robots Rewired . | . . . Allies Hacked . | . . . Hacks Repelled . | . . . Allies | -11 -10 -9 -------- Run | Scr Mat Mat Total Allies . | . . . Largest Group . | . . . Highest-Rated Group . | . . . Highest-Rated Ally . | . . . Total Orders . | . . . Ally Attacks . | . . . Total Damage . | . . . Kills . | . . . Allies Corrupted . | . . . Allies Melted . | . . . Intel | -11 -10 -9 ------- Run | Scr Mat Mat Robot Analysis Total . | . . . Derelict Logs Recovered . | . . . Drone Launches . | . . . Drone Recoveries . | . . . Exploration | -11 -10 -9 ------------- Run | Scr Mat Mat Turns Passed 2323 | 1280 669 374 Spaces Moved 691 | 310 195 186 Core 48 | 24 24 . Treads . | . . . Legs 540 | 286 166 88 Wheels 98 | . . 98 Hover . | . . . Flight 5 | . 5 . Fastest Speed 50 | 50 120 90 Average Speed 157 | 114 253 130 Slowest Speed 760 | 120 760 240 Overloaded Moves . | . . . Propulsion Burnouts . | . . . Robots Hopped . | . . . Cave-ins Triggered . | . . . Exploration Rate (%) 27 | 34 31 17 Regions Visited 2 Branch Regions . Pre-discovered Areas . | . . . Known Exits Taken . | . . . Unknown Exits Taken 2 | 1 1 . Scrap Searched . | . . . Spaces Dug . | . . . Terrain Destroyed . | . . . Melee . | . . . Projectile . | . . . AOE . | . . . Actions | -11 -10 -9 --------- Run | Scr Mat Mat Total 1796 | 1227 306 263 Wait 906 | 899 4 3 Move 689 | 309 194 186 Hop . | . . . Pick Up 50 | 9 28 13 Fast Attach . | . . . Attach 35 | 6 12 17 Detach 1 | . . 1 Swap 14 | . 7 7 Drop 12 | . 10 2 Fire 82 | 4 51 27 Melee . | . . . Ram 4 | . . 4 Kick 3 | . . 3 Crush . | . . . Escape Stasis . | . . . Rewire . | . . . Trap . | . . . Miscellaneous . | . . . Route ------- -11/Scrapyard -10/Materials -9/Materials History --------- Turn | Location | Event 2 | -11/Scrapyard | Met Revision 17 83 | -11/Scrapyard | Discovered new exit (range 8) 1281 | -11/Scrapyard | Entered Materials 1282 | -10/Materials | Build established: Mutant 1412 | -10/Materials | Core integrity fell below 50% 1451 | -10/Materials | Lost 6 parts (1p2n3w) 1668 | -10/Materials | Core integrity fell below 20% 1740 | -10/Materials | Build established: Scavenger-Mutant 1828 | -10/Materials | Lost 4 parts (1p2n1w) 1932 | -10/Materials | Discovered new exit (range 8) 1950 | -10/Materials | Entered another Materials area 1950 | -9/Materials | Evolved 2 slots: Propulsion x1, Weapon x1 2134 | -9/Materials | Lost 3 parts (1n2w) 2190 | -9/Materials | Core integrity fell below 50% 2234 | -9/Materials | Core integrity fell below 20% 2268 | -9/Materials | Lost 11 parts (1p4n2u4w) 2324 | -9/Materials | Destroyed by G-34 Mercenary with Small Laser Last Messages --------------- Heat Sink destroyed. Connecting with Terminal... >>Alert(Check) Current Alert Level: Low Security >>Prototypes Downloading prototype IDs... Imp. EM Shotgun Hvy. EM Shotgun [Achievement: Everything Is Under Control] >>Alert(Purge) Purged threat record, alert level lowered. Feedback: System corruption (+1%). Slammed into G-34 Mercenary. Acquired 8 matter. Com. Wheel destroyed. Slammed into R-06 Scavenger. K-01 Serf collects debris. Acquired Lgt. EM Pulse Cannon. G-34 Mercenary destroyed. Acquired Plasma Cutter. Map ----- +----------------------------------------------------+ | ?????????????# ???????# #???????????????????? | | ?????????????# ???????# #???????????????????? | | ?????????##### #####??# #???????????????????? | | ????????? ####+###?????????????????? | | ????????? # #?????????????????? | | ????????????? # ! #?????????????????? | | ????????????????????# /%!! #?????????????????? | | ????????????????????# # !! ! #?????????????????? | | ????????????????????# # #?????????????????? | | ????????????????????# # #?????????????????? | | ????????????????????# ########?????????????????? | | ##################### % #????????????????????????? | | %%% a g#????????????????????????? | | #????????????????????????? | | #????????????????????????? | | ##################### g#????????????????????????? | | ????????????????????# #######+#######??????????? | | ????????????????????# g ?????????? | | ????????????????????# ?????????? | | ????????????????????# g! ?????????? | | ????????????????????####g###########+????????????? | | ?????????????????????# * #????????????????????? | | ?????????????????????# #????????????????????? | | ?????????????????????# *| #????????????????????? | | ?????????????????????# *| #????????????????????? | | ?????????????????????# *@ #????????????????????? | | ?????????????????????# #????????????????????? | | ?????????????????????########????????????????????? | | ?????????????????????????????????????????????????? | | ?????????????????????????????????????????????????? | | | | | | | | | | | | | | | | | | | | | | | | | | | | | | | | | | | | | | | | | +----------------------------------------------------+ Best States ------------- Heat Dissipation 38 Energy Generation 14 Energy Capacity 250 Matter Stores 350 Matter Capacity 350 Sight Range 16 Terrain Scan Density 10 Evasion (%) 50 Item Schematics ----------------- None Robot Schematics ------------------ None Fabricated ------------ Nothing Alien Tech Used ----------------- None Achievements -------------- Close Call Crack Shot Everything Is Under Control One Hack Too Far Challenges ------------ None Game ------ Seed ComponentMetafieldFirepult Manual? 0 Play Time 00:34:48 Cumulative 1.5 hours Start 2020.05.19 @ 11:37:12 End 2020.05.19 @ 12:38:34 Sessions 1 Manual Loads 0 Difficulty Rogue Special Mode None Game No. 2 Rogue 2 Adventurer 0 Explorer 0 Win Type - Total 0 Types 0/0/0/0/0/0/0 Lore% 0 Gallery% 2 Achievement% 2 Wizard Run 0 Options --------- ASCII 0 Keyboard 0 Movement Numpad Keybinds 0 Fullscreen 1 Font 24/Smallcaps Map View 113x50 Tactical HUD 0 Map Filters NONE Filters NONE Steam 1 RUN: db490b0a-f386-4c4c-a832-f2b448c2096b